bitfinex-derivatives/quotes_BNBF0:USTF0_20250126
["timestamp","ask_amount","ask_price","bid_price","bid_amount"]
[1737935124078,0.89287458,665.66,663.87,1.00791014]
[1737935124278,0.89287458,665.66,663.88,1.00791014]
[1737935124472,0.89287458,665.66,663.89,1.00791014]
[1737935124676,0.89287458,665.66,663.9,1.00791014]
[1737935124873,0.89287458,665.66,663.91,1.00791014]
[1737935125073,0.89287458,665.65,663.92,1.00791014]
[1737935125276,0.89287458,665.64,663.93,1.00791014]
[1737935125477,0.89287458,665.64,663.83,0.30128195]
[1737935125779,0.89287458,665.63,663.84,0.27633706]
[1737935125981,0.89287458,665.63,663.85,0.27633706]
[1737935126280,0.89287458,665.63,663.86,0.27633706]
[1737935126480,0.89287458,665.62,663.87,0.27633706]
[1737935126681,0.89287458,665.62,663.88,0.27633706]
[1737935126983,0.89287458,665.62,663.89,0.27633706]
[1737935127182,0.89287458,665.61,663.89,0.27633706]
[1737935127382,0.89287458,665.61,663.9,0.27633706]
[1737935127578,0.89287458,665.6,663.91,0.27633706]
[1737935127883,0.89287458,665.59,663.92,0.27633706]
[1737935128082,0.89287458,665.59,663.93,0.27633706]
[1737935128285,0.89287458,665.58,663.94,0.27633706]
[1737935128582,0.30044465,665.68,663.83,0.30128195]
[1737935128583,0.89287458,665.57,663.95,0.27633706]
[1737935129078,0.89287458,665.56,663.95,0.27633706]
[1737935129480,0.89287458,665.55,663.95,0.27633706]
[1737935129983,0.89287458,665.54,663.95,0.27633706]
[1737935130379,0.89287458,665.54,663.96,0.27633706]
[1737935130577,0.89287458,665.54,663.97,0.27633706]
[1737935130783,0.89287458,665.53,663.98,0.27633706]
[1737935130984,0.89287458,665.53,663.99,0.27633706]
[1737935131183,0.89287458,665.53,664.0,0.27633706]
[1737935131378,0.89287458,665.52,664.01,0.27633706]
[1737935131581,0.89287458,665.52,664.02,0.27633706]
[1737935131781,0.89287458,665.52,664.03,0.27633706]
[1737935131983,0.89287458,665.51,664.04,0.27633706]
[1737935132179,0.89287458,665.51,664.05,0.27633706]
[1737935132383,0.89287458,665.5,664.06,0.27633706]
[1737935132583,0.89287458,665.5,664.07,1.0079003]
[1737935132784,0.89287458,665.5,664.08,1.0079003]
[1737935132986,0.89287458,665.49,664.09,0.27633706]
[1737935133181,0.89287458,665.49,664.1,0.27633706]
[1737935133387,0.89287458,665.48,664.11,0.27633706]
[1737935133583,0.89287458,665.48,663.83,0.30128195]
[1737935133584,0.89287458,665.48,664.12,0.27633706]
[1737935133785,0.89287458,665.47,664.13,0.27633706]
[1737935133984,0.89287458,665.47,664.14,1.0079003]
[1737935134187,0.89287458,665.47,664.15,1.0079003]
[1737935134381,0.89287458,665.46,664.16,0.27633706]
[1737935134580,0.89287458,665.46,664.17,0.27633706]
[1737935134785,0.89287458,665.45,664.18,0.27633706]
[1737935135086,0.89287458,665.44,664.19,0.27633706]
[1737935135487,0.89287458,665.44,664.19,0.98333706]
[1737935135788,0.89287458,665.43,664.2,0.27633706]
[1737935136088,0.89287458,665.43,664.21,0.27633706]
[1737935136288,0.89287458,665.42,664.22,0.27633706]
[1737935136490,0.89287458,665.42,664.23,0.27633706]
[1737935136691,0.89287458,665.41,664.23,0.27633706]
[1737935136886,0.89287458,665.41,664.24,0.27633706]
[1737935137092,0.89287458,665.4,664.25,0.27633706]
[1737935137290,0.89287458,665.4,664.26,0.27633706]
[1737935137590,0.89287458,665.4,664.27,0.27633706]
[1737935137893,0.89287458,665.39,664.19,0.707]
[1737935138091,0.89287458,665.39,664.2,0.27635749]
[1737935138291,0.30044465,665.68,664.19,0.707]
[1737935138292,0.89287458,665.38,664.21,0.27635749]
[1737935138492,0.89287458,665.38,664.22,0.27635749]
[1737935138691,0.89287458,665.37,664.23,0.27635749]
[1737935138884,0.89287458,665.37,664.24,0.27635749]
[1737935139087,0.89287458,665.36,664.25,0.27635749]
[1737935139291,0.89287458,665.36,664.26,0.27635749]
[1737935139493,0.89287458,665.35,664.27,0.27635749]
[1737935139685,0.89287458,665.35,664.28,0.27635749]
[1737935139889,0.89287458,665.35,664.29,0.27634876]
[1737935140084,0.89287458,665.35,664.3,0.27634876]
[1737935140389,0.89287458,665.34,664.31,0.27634876]
[1737935140587,0.89287458,665.33,664.32,0.27634876]
[1737935140789,0.89287458,665.32,664.33,0.27634876]
[1737935140989,0.89287458,665.32,664.34,0.27634876]
[1737935141191,0.89287458,665.32,664.35,0.27634876]
[1737935141393,0.89287458,665.32,664.36,0.27634876]
[1737935141692,0.89287458,665.31,664.37,0.27634876]
[1737935141889,1.19348632,665.31,664.37,0.27634876]
[1737935142089,0.30061626,665.3,664.37,0.27634876]
[1737935142283,0.89287458,665.29,664.37,0.27634876]
[1737935142491,0.3006253,665.28,664.37,0.27634876]
[1737935142891,0.89287458,665.27,664.37,0.27634876]
[1737935143092,0.89287458,665.27,664.19,0.707]
[1737935143093,0.30063433,665.26,664.38,0.27634876]
[1737935143292,0.30063433,665.26,664.2,0.27634876]
[1737935143486,0.30063433,665.26,664.21,0.27634876]
[1737935143487,0.89287458,665.25,664.21,0.27634876]
[1737935143691,0.89287458,665.25,664.22,0.27634876]
[1737935143892,0.89287458,665.25,664.23,0.27634876]
[1737935144093,0.89287458,665.24,664.24,0.27634876]
[1737935144293,0.89287458,665.24,664.25,0.27634876]
[1737935144494,0.89287458,665.24,664.26,0.27634876]
[1737935144694,0.30063433,665.26,664.27,0.27634876]
[1737935144695,0.89287458,665.23,664.27,0.27634876]
[1737935144896,0.89287458,665.23,664.28,0.27634876]
[1737935145093,0.30065241,665.22,664.29,0.27634876]
[1737935145293,1.19352699,665.22,664.3,0.27634876]
[1737935145493,1.19352699,665.22,664.31,0.27634876]
[1737935145794,1.19352699,665.22,664.32,0.27634876]
[1737935145993,0.89287458,665.21,664.33,0.27634876]
[1737935146189,0.89287458,665.21,664.34,0.27634876]
[1737935146397,0.89287458,665.21,664.35,0.27634876]
[1737935146594,0.89287458,665.2,664.2,0.27634876]
[1737935146786,0.89287458,665.2,664.19,0.707]
[1737935146787,0.89287458,665.2,664.21,0.27634876]
[1737935146989,0.89287458,665.2,664.22,0.27634876]
[1737935147189,0.89287458,665.19,664.23,0.27634876]
[1737935147394,0.89287458,665.19,664.24,0.27634876]
[1737935147593,0.89287458,665.19,664.25,0.27634876]
[1737935147788,0.89287458,665.19,664.19,0.707]
[1737935147789,0.30065241,665.22,664.2,0.27634876]
[1737935147995,0.30065241,665.22,664.21,0.27634876]
[1737935148194,0.30065241,665.22,664.22,0.27634876]
[1737935148394,0.87875551,665.21,664.23,0.27634876]
[1737935148895,0.87875551,665.2,664.23,0.27634876]
[1737935149089,0.87875551,665.2,664.24,0.27634876]
[1737935149295,0.87875551,665.19,664.25,0.27634876]
[1737935149495,0.87875551,665.19,664.26,0.27634876]
[1737935149794,0.30067049,665.18,664.27,0.27634876]
[1737935149995,0.30067049,665.18,664.28,0.27634876]
[1737935150196,0.30067049,665.18,664.22,0.27634876]
[1737935150395,0.30067049,665.18,664.23,0.27634876]
[1737935150594,0.30067049,665.18,664.24,0.27634876]
[1737935150794,0.30067049,665.18,664.25,0.27634876]
[1737935150996,0.30067049,665.18,664.26,0.27634876]
[1737935151197,0.30067049,665.18,664.27,0.27634876]
[1737935151498,0.30067049,665.18,664.28,0.27634876]
[1737935151696,0.30067049,665.18,664.29,0.27634876]
[1737935151890,0.30067049,665.18,664.3,0.27634876]
[1737935152298,0.30067049,665.18,664.31,0.27634876]
[1737935152498,0.30067049,665.18,664.22,0.27634876]
[1737935152701,0.30067049,665.18,664.23,0.27634876]
[1737935152899,0.30067049,665.18,664.24,0.27634876]
[1737935153199,0.30067049,665.18,664.25,0.27634876]
[1737935153400,0.30067049,665.18,664.26,0.27634876]
[1737935153699,0.88183268,665.17,664.22,0.27634876]
[1737935153898,0.88183268,665.17,664.23,0.27634876]
[1737935154095,0.88183268,665.17,664.22,0.27634876]
[1737935154300,0.88183268,665.16,664.23,0.27634876]
[1737935154500,0.88183268,665.16,664.24,0.27634876]
[1737935154698,0.88183268,665.16,664.25,0.27634876]
[1737935154899,0.88183268,665.15,664.26,0.27634876]
[1737935155094,0.88183268,665.15,664.27,0.27634876]
[1737935155297,0.88183268,665.15,664.28,0.27634876]
[1737935155500,0.88183268,665.15,664.22,0.27634876]
[1737935155700,0.88183268,665.17,664.23,0.27634876]
[1737935155901,0.88183268,665.17,664.24,0.27634876]
[1737935156102,0.88183268,665.17,664.22,0.27634876]
[1737935156299,0.88183268,665.17,664.23,0.27634876]
[1737935156500,0.88183268,665.17,664.24,0.27634876]
[1737935156700,0.88183268,665.17,664.21,0.973]
[1737935156701,0.88183268,665.17,664.22,0.27634876]
[1737935156902,0.88183268,665.17,664.23,0.27634876]
[1737935157101,0.88183268,665.17,664.24,0.27634876]
[1737935157302,0.88183268,665.17,664.22,0.27634876]
[1737935157497,0.88183268,665.17,664.23,0.27634876]
[1737935157697,0.88183268,665.17,664.22,0.27634876]
[1737935157901,0.88183268,665.16,664.23,0.27634876]
[1737935158104,0.88183268,665.16,664.21,0.973]
[1737935158105,0.88183268,665.16,664.22,0.27634876]
[1737935158403,0.88183268,665.16,664.23,0.27634876]
[1737935158596,0.88183268,665.15,664.22,0.27634876]
[1737935158798,0.88183268,665.15,664.23,0.27634876]
[1737935158997,0.88183268,665.15,664.22,0.27634876]
[1737935159201,0.88183268,665.15,664.23,0.27634876]
[1737935159403,0.88183268,665.15,664.21,0.973]
[1737935159404,0.88183268,665.14,664.22,0.27634876]
[1737935159604,0.88183268,665.14,664.23,0.27634876]
[1737935159803,0.88183268,665.14,664.22,0.27634876]
[1737935159997,0.88183268,665.13,664.23,0.27634876]
[1737935160200,0.88183268,665.13,664.22,0.27634876]
[1737935160402,0.88183268,665.12,664.22,0.27634876]
[1737935161104,0.88183268,665.11,664.23,0.27636478]
[1737935161302,0.88183268,665.11,664.22,0.27636478]
[1737935161503,0.88183268,665.17,664.23,0.27636478]
[1737935161804,0.88183268,665.17,664.24,0.27636478]
[1737935162004,0.88183268,665.17,664.25,0.27636478]
[1737935162305,0.88183268,665.16,664.26,0.27636478]
[1737935162503,0.88183268,665.16,664.23,0.27636478]
[1737935163107,0.88183268,665.15,664.23,0.27636478]
[1737935163901,0.88183268,665.14,664.23,0.27636478]
[1737935164608,0.30067049,665.18,664.24,0.27636478]
[1737935164808,0.30067049,665.18,664.25,0.27636478]
[1737935165007,0.30067049,665.18,664.22,0.713]
[1737935165008,0.30067049,665.18,664.26,0.27636478]
[1737935165207,0.88817602,665.17,664.27,0.27636478]
[1737935165408,0.88817602,665.17,664.28,0.27636478]
[1737935165608,0.88817602,665.16,664.23,0.27636478]
[1737935166010,0.88817602,665.15,664.23,0.27636478]
[1737935166510,0.88817602,665.14,664.23,0.27636478]
[1737935166908,0.30067049,665.18,664.23,0.27636478]
[1737935167412,0.88943083,665.17,664.23,0.27636478]
[1737935168110,0.30067049,665.18,664.24,0.27636478]
[1737935168310,0.30067049,665.18,664.25,0.27636478]
[1737935168509,0.30067049,665.18,664.26,0.27636478]
[1737935168706,0.30067049,665.18,664.22,0.713]
[1737935168707,0.30067049,665.18,664.27,0.27636478]
[1737935169010,0.30067049,665.18,664.28,0.27636478]
[1737935169311,0.30067049,665.18,664.29,0.27636478]
[1737935169611,0.30067049,665.18,664.3,0.27636478]
[1737935169809,0.30067049,665.18,664.31,0.27636478]
[1737935170010,0.30067049,665.18,664.32,0.27636478]
[1737935170210,0.30067049,665.18,664.33,0.27636478]
[1737935170410,0.30067049,665.18,664.23,0.27636478]
[1737935170614,1.0791397,665.75,664.24,0.27636478]
[1737935170911,5.25403982,673.78,664.22,0.713]
[1737935170912,1.19106027,665.74,664.33,1.1192532]
[1737935171111,1.19106027,665.74,664.34,0.27636478]
[1737935171507,0.89064269,665.73,664.34,0.27636478]
[1737935171910,0.89064269,665.72,664.35,0.27636478]
[1737935172110,0.89064269,665.72,664.36,0.27636478]
[1737935172306,0.89064269,665.72,664.34,0.27636478]
[1737935172707,0.89064269,665.71,664.34,0.27636478]
[1737935173214,0.89064269,665.7,664.34,0.27636478]
[1737935173614,0.89064269,665.69,664.34,0.27636478]
[1737935173809,0.30044917,665.67,664.34,0.27636478]
[1737935174009,0.30044917,665.67,664.23,0.27636478]
[1737935174212,0.89064269,665.66,664.23,0.27636478]
[1737935174614,0.89064269,665.65,664.23,0.27636478]
[1737935175215,0.89064269,665.64,664.23,0.27636478]
[1737935175415,0.30047174,665.62,664.23,0.27636478]
[1737935175714,0.89064269,665.61,664.23,0.27636478]
[1737935176311,0.30048528,665.59,664.24,0.27636478]
[1737935176615,0.30048528,665.59,664.25,0.27636478]
[1737935176815,0.30048528,665.59,664.24,0.27636478]
[1737935177111,0.30048528,665.59,664.25,0.27636478]
[1737935177112,0.89064269,665.58,664.25,0.27636478]
[1737935177316,0.89064269,665.58,664.23,0.875]
[1737935177317,0.30049882,665.56,664.24,0.27636478]
[1737935177811,0.89064269,665.55,664.24,0.27636478]
[1737935178015,0.30051237,665.53,664.24,0.27636478]
[1737935178616,0.89064269,665.52,664.24,0.27636478]
[1737935178819,0.3005214,665.51,664.24,0.27636478]
[1737935179116,0.89064269,665.5,664.23,0.875]
[1737935179315,0.30053043,665.49,664.24,0.2763081]
[1737935180517,0.89064269,665.48,664.24,0.2763081]
[1737935180717,0.30053946,665.47,664.24,0.2763081]
[1737935181213,0.89064269,665.46,664.24,0.2763081]
[1737935181516,0.3005485,665.45,664.24,0.2763081]
[1737935181716,0.89064269,665.44,664.24,0.2763081]
[1737935181908,0.30055753,665.43,664.24,0.2763081]
[1737935182515,0.89064269,665.42,664.24,0.2763081]
[1737935182716,0.30056656,665.41,664.24,0.2763081]
[1737935182917,0.30056656,665.41,664.25,0.2763277]
[1737935183118,0.89064269,665.4,664.26,0.2763277]
[1737935183416,0.3005756,665.39,664.27,0.2763277]
[1737935183610,0.3005756,665.39,664.24,0.2763277]
[1737935183611,1.19121829,665.39,664.24,0.2763277]
[1737935183815,1.19121829,665.39,664.25,0.2763277]
[1737935184012,0.89064269,665.38,664.24,0.2763277]
[1737935184416,1.19122732,665.37,664.24,0.2763277]
[1737935184817,1.19123184,665.36,664.24,0.9723277]
[1737935185217,1.19123184,665.36,664.25,0.2763277]
[1737935185720,1.19123636,665.35,664.25,0.2763277]
[1737935185920,0.30059819,665.34,664.25,0.2763277]
[1737935186323,0.89064269,665.33,664.25,0.2763277]
[1737935186522,1.19124991,665.32,664.25,0.2763277]
[1737935186722,0.30061174,665.31,664.25,0.2763277]
[1737935187122,0.89064269,665.3,664.25,0.2763277]
[1737935187719,0.89064269,665.29,664.25,0.2763277]
[1737935188119,0.89064269,665.28,664.25,0.2763277]
[1737935188522,0.89064269,665.28,664.26,0.27627107]
[1737935188818,0.30061626,665.3,664.27,0.27627107]
[1737935188819,0.89064269,665.27,664.27,0.27627107]
[1737935189017,0.89064269,665.27,664.25,0.27627107]
[1737935189222,0.89064269,665.27,664.26,0.27627107]
[1737935189423,0.89064269,665.26,664.27,0.27627107]
[1737935189622,0.89064269,665.26,664.25,0.27627107]
[1737935189822,0.89064269,665.26,664.26,0.27627107]
[1737935190022,0.89064269,665.25,664.27,0.27627107]
[1737935190224,0.89064269,665.25,664.28,0.27627107]
[1737935190423,0.89064269,665.25,664.29,0.27627107]
[1737935190619,0.89064269,665.24,664.3,0.27627107]
[1737935190819,0.89064269,665.24,664.25,0.27627107]
[1737935191224,0.89064269,665.23,664.25,0.27627107]
[1737935191928,0.89064269,665.22,664.25,0.27627107]
[1737935192330,0.89064269,665.21,664.25,0.27627107]
[1737935192531,0.89064269,665.2,664.25,0.27627107]
[1737935192730,0.89064269,665.19,664.25,0.27627107]
[1737935193629,0.89064269,665.18,664.25,0.27627107]
[1737935194029,0.89064269,665.18,664.26,0.27633393]
[1737935194225,0.89064269,665.17,664.25,0.27633393]
[1737935194428,0.89064269,665.17,664.26,0.27633393]
[1737935194627,0.89064269,665.17,664.25,0.27633393]
[1737935194823,0.89064269,665.16,664.25,0.27633393]
[1737935195231,0.89064269,665.15,664.25,0.27633393]
[1737935195833,0.89064269,665.14,664.25,0.27633393]
[1737935196229,0.89064269,665.13,664.25,0.27633393]
[1737935196736,0.89064269,665.12,664.25,0.27633393]
[1737935197030,0.30061626,665.3,664.25,0.27633393]
[1737935197633,0.89243225,665.29,664.25,0.27633393]
[1737935198030,0.89243225,665.28,664.25,0.27633393]
[1737935198337,0.89243225,665.28,664.26,0.27633393]
[1737935198534,0.89243225,665.28,664.27,0.27633393]
[1737935198740,0.89243225,665.27,664.28,0.27633393]
[1737935198929,0.89243225,665.27,664.29,0.27633393]
[1737935199238,0.89243225,665.26,664.3,0.27633393]
[1737935199536,0.89243225,665.26,664.31,0.27633393]
[1737935199732,0.89243225,665.26,664.3,0.895]
[1737935199933,0.89243225,665.25,664.3,0.895]
[1737935200134,0.89243225,665.25,664.31,0.27623368]
[1737935200332,0.30061626,665.3,664.31,0.27623368]
[1737935200532,0.30061626,665.3,664.32,0.27623368]
[1737935200732,0.30061626,665.3,664.33,0.27623368]
[1737935200940,1.0791397,666.05,664.34,0.27623368]
[1737935201140,0.30028677,666.03,664.35,0.27623368]
[1737935201438,0.30028677,666.03,664.36,0.27623368]
[1737935201733,0.30028677,666.03,664.37,0.27623368]
[1737935201938,0.89373247,666.02,664.38,0.27623368]
[1737935202238,0.89373247,666.02,664.3,0.895]
[1737935202239,0.89373247,666.02,664.39,0.27623368]
[1737935202441,0.89373247,666.01,664.4,0.27623368]
[1737935202640,0.89373247,666.01,664.41,0.27623368]
[1737935202955,0.89373247,666.0,664.42,0.27623368]
[1737935203138,0.89373247,666.0,664.43,0.27623368]
[1737935203333,0.89373247,666.0,664.44,0.27623368]
[1737935203534,0.89373247,665.99,664.45,0.27623368]
[1737935203746,0.89373247,665.99,664.46,0.27623368]
[1737935203937,0.89373247,665.99,664.47,0.27623368]
[1737935204240,0.89373247,665.98,664.48,0.27623368]
[1737935204434,0.89373247,665.98,664.32,0.27623368]
[1737935204634,0.89373247,665.98,664.33,0.27623368]
[1737935204839,0.89373247,665.97,664.34,0.27623368]
[1737935205040,0.89373247,665.97,664.35,0.27623368]
[1737935205240,0.89373247,665.96,664.36,0.27623368]
[1737935205439,0.89373247,665.96,664.39,1.1192532]
[1737935205642,0.89373247,665.95,664.4,0.27623368]
[1737935205839,0.89373247,665.95,664.41,0.27623368]
[1737935206040,0.89373247,665.94,664.42,0.27623368]
[1737935206239,0.89373247,665.94,664.43,0.27623368]
[1737935206435,0.89373247,665.94,664.44,0.27623368]
[1737935206635,0.89373247,665.93,664.45,0.27623368]
[1737935206842,0.89373247,665.93,664.46,0.27623368]
[1737935207039,0.89373247,665.92,664.47,0.27623368]
[1737935207436,0.89373247,665.92,664.48,0.27623368]
[1737935207635,0.89373247,665.91,664.49,0.27623368]
[1737935207837,0.89373247,665.91,664.5,0.27623368]
[1737935208042,0.89373247,665.9,664.51,0.27623368]
[1737935208341,0.89373247,665.9,664.52,0.27623368]
[1737935208536,0.89373247,665.9,664.53,0.27623368]
[1737935208737,0.89373247,665.9,664.54,0.27623368]
[1737935208937,0.89373247,665.89,664.55,0.27623368]
[1737935209242,0.89373247,665.88,664.56,0.27623368]
[1737935209436,0.89373247,665.88,664.57,0.27623368]
[1737935209639,0.89373247,665.87,664.58,0.27623368]
[1737935209838,0.89373247,665.87,664.59,0.27623368]
[1737935210041,0.89373247,665.86,664.6,0.27623368]
[1737935210240,0.89373247,665.86,664.61,0.27623368]
[1737935210544,0.89373247,665.85,664.62,0.27623368]
[1737935210742,0.89373247,665.85,664.63,0.27623368]
[1737935210941,0.89373247,665.84,664.64,0.27623368]
[1737935211142,0.89373247,665.84,664.65,0.27623368]
[1737935211342,0.89373247,665.84,664.66,0.27623368]
[1737935211544,0.89373247,665.83,664.67,0.27623368]
[1737935211738,0.89373247,665.83,664.68,0.27623368]
[1737935212039,0.30028677,666.03,664.69,0.27623368]
[1737935212444,0.889164,666.02,664.7,0.27623368]
[1737935212641,0.889164,666.02,664.71,0.27623368]
[1737935212845,0.889164,666.02,664.72,0.27623368]
[1737935213046,0.889164,666.02,664.73,0.27623368]
[1737935213245,0.889164,666.01,664.74,0.27623368]
[1737935213445,0.889164,666.0,664.75,0.27623368]
[1737935213641,0.889164,666.0,664.76,0.27623368]
[1737935213840,0.889164,665.99,664.77,0.27623368]
[1737935214039,0.889164,665.99,664.78,0.27623368]
[1737935214243,0.889164,665.99,664.79,0.27623368]
[1737935214444,0.889164,665.99,664.8,0.27623368]
[1737935214645,0.889164,665.98,664.81,0.27623368]
[1737935214941,0.889164,665.98,664.67,0.723]
[1737935214942,0.889164,665.98,664.82,0.27623368]
[1737935215145,0.889164,665.97,664.68,0.27623368]
[1737935215844,0.889164,665.96,664.68,0.27623368]
[1737935216341,0.889164,665.95,664.68,0.27623368]
[1737935216641,0.889164,665.95,664.69,0.27623368]
[1737935216841,0.889164,665.95,664.7,0.27623368]
[1737935217046,0.30028677,666.03,664.71,0.27623368]
[1737935217245,0.30028677,666.03,664.72,0.27623368]
[1737935217447,0.30028677,666.03,664.73,0.27623368]
[1737935217642,0.30028677,666.03,664.74,0.27623368]
[1737935217847,0.30028677,666.03,664.75,0.27623368]
[1737935218046,0.30028677,666.03,664.76,0.27623368]
[1737935218246,0.30028677,666.03,664.77,0.27623368]
[1737935218648,0.30028677,666.03,664.78,0.27623368]
[1737935218948,0.30028677,666.03,664.79,0.27623368]
[1737935219248,0.30028677,666.03,664.8,0.27623368]
[1737935219647,0.30028677,666.03,664.81,0.27623368]
[1737935219846,0.30028677,666.03,664.82,0.27623368]
[1737935220047,0.30028677,666.03,664.83,0.27623368]
[1737935220343,0.30028677,666.03,664.84,0.27623368]
[1737935220549,0.30028677,666.03,664.85,0.27623368]
[1737935220748,0.30028677,666.03,664.86,0.27623368]
[1737935220949,0.30028677,666.03,664.87,0.27623368]
[1737935221248,0.30028677,666.03,664.88,0.27623368]
[1737935221444,0.30028677,666.03,664.89,0.27623368]
[1737935221642,0.30028677,666.03,664.68,0.27623368]
[1737935221846,0.30028677,666.03,664.69,0.27623368]
[1737935222046,0.30028677,666.03,664.68,0.27623368]
[1737935222644,0.30028677,666.03,664.69,0.27623368]
[1737935222849,0.30028677,666.03,664.68,0.27623368]
[1737935223056,0.30028677,666.03,664.69,0.27623368]
[1737935223349,0.30028677,666.03,664.7,0.30088761]
[1737935223545,0.30028677,666.03,664.71,0.27623368]
[1737935223950,0.30028677,666.03,664.72,0.30087856]
[1737935224151,0.30028677,666.03,664.73,0.27623368]
[1737935224552,0.30028677,666.03,664.72,0.30087856]
[1737935224752,0.30028677,666.03,664.73,0.27600112]
[1737935225247,0.30028677,666.03,664.72,0.30087856]
[1737935225446,0.30028677,666.03,664.73,0.27599553]
[1737935225652,0.30028677,666.03,664.74,0.27599553]
[1737935225851,0.30028677,666.03,664.75,0.27599553]
[1737935226052,0.30028677,666.03,664.76,0.27599553]
[1737935226353,0.30028677,666.03,664.77,0.27599553]
[1737935226650,0.30028677,666.03,664.78,0.27599553]
[1737935226850,0.30028677,666.03,664.76,0.27599553]
[1737935227052,0.30028677,666.03,664.75,0.651]
[1737935227053,0.30028677,666.03,664.77,0.27599553]
[1737935227753,0.30028677,666.03,664.78,0.27599553]
[1737935227955,0.30028677,666.03,664.76,0.27599553]
[1737935228252,0.30028677,666.03,664.77,0.27599553]
[1737935228451,0.30028677,666.03,664.75,0.651]
[1737935228452,0.30028677,666.03,664.76,0.27599553]
[1737935228649,0.30028677,666.03,664.77,0.27599553]
[1737935229051,0.30028677,666.03,664.78,0.27599553]
[1737935229247,0.30028677,666.03,664.79,0.27599553]
[1737935229446,0.30028677,666.03,664.75,0.651]
[1737935229447,0.30028677,666.03,664.8,0.27599553]
[1737935229649,0.30028677,666.03,664.81,0.27599553]
[1737935230151,0.30028677,666.03,664.82,0.27599553]
[1737935230351,0.30028677,666.03,664.83,0.27599553]
[1737935230552,0.30028677,666.03,664.84,0.27599553]
[1737935230752,0.30028677,666.03,664.85,0.27599553]
[1737935230947,0.30028677,666.03,664.86,0.27599553]
[1737935231151,0.30028677,666.03,664.87,0.27599553]
[1737935231355,0.88510079,666.02,664.88,0.27599553]
[1737935231549,0.88510079,666.02,664.89,0.27599553]
[1737935231747,0.88510079,666.02,664.9,0.27599553]
[1737935231952,0.88510079,666.01,664.91,0.27599553]
[1737935232154,0.88510079,666.01,664.92,0.27599553]
[1737935232355,0.30028677,666.03,664.75,0.651]
[1737935232356,0.88510079,666.0,664.93,0.27599553]
[1737935232856,0.88510079,665.99,664.94,0.27599553]
[1737935233176,0.88510079,665.99,664.95,0.27599553]
[1737935233358,0.88510079,665.98,664.96,0.27599553]
[1737935233656,0.88510079,665.98,664.97,0.27599553]
[1737935233853,0.88510079,665.97,664.98,0.27599553]
[1737935234054,0.88510079,665.97,664.99,0.27599553]
[1737935234251,0.88510079,665.97,665.0,0.27599553]
[1737935234450,0.88510079,666.02,664.75,0.651]
[1737935234650,0.88510079,666.02,664.76,0.27604905]
[1737935234851,0.88510079,666.02,664.77,0.27604905]
[1737935235051,0.88510079,666.02,664.78,0.27604905]
[1737935235251,0.88510079,666.02,664.79,0.27604905]
[1737935235452,0.88510079,666.02,664.8,0.27604905]
[1737935235655,0.30028677,666.03,664.81,0.27604905]
[1737935235656,0.88510079,666.01,664.81,0.27604905]
[1737935235860,0.88510079,666.01,664.82,0.27604905]
[1737935236054,0.88510079,666.01,664.83,0.27604905]
[1737935236252,0.88510079,666.01,664.84,0.27604905]
[1737935236454,0.88510079,666.0,664.85,0.27610664]
[1737935236649,0.88510079,666.0,664.86,0.27610664]
[1737935236959,0.88510079,666.0,664.87,0.27610664]
[1737935237152,0.88510079,666.0,664.75,0.651]
[1737935237153,0.88510079,665.99,664.88,0.27610664]
[1737935237352,0.88510079,665.99,664.89,0.27610664]
[1737935237551,0.88510079,665.99,664.9,0.27610664]
[1737935237857,0.88510079,666.02,664.91,0.27610664]
[1737935238150,0.88510079,666.02,664.92,0.27610664]
[1737935238355,0.88510079,666.01,664.92,1.02710664]
[1737935238556,0.88510079,666.01,664.93,0.27610664]
[1737935238752,0.88510079,666.02,664.94,0.27610664]
[1737935238957,0.88510079,666.02,664.95,0.27610664]
[1737935239157,0.88510079,666.02,664.96,0.27610664]
[1737935239359,0.88510079,666.02,664.97,0.27610664]
[1737935239552,0.88510079,666.02,664.98,0.27610664]
[1737935239757,0.88510079,666.02,664.99,0.27610664]
[1737935240053,1.0791397,666.38,665.0,0.27610664]
[1737935240054,1.18539658,666.01,665.0,0.27610664]
[1737935240259,1.18539658,666.01,665.01,0.27610664]
[1737935240458,1.18539658,666.01,665.02,0.27610664]
[1737935240658,0.88510079,666.0,665.03,0.27610664]
[1737935240860,0.88510079,666.0,665.04,0.27610664]
[1737935241058,0.88510079,666.0,665.05,0.27610664]
[1737935241255,0.88510079,666.0,665.06,0.27610664]
[1737935241461,0.3003048,665.99,664.93,0.27610664]
[1737935241661,0.3003048,665.99,664.94,0.27610664]
[1737935241860,0.3003048,665.99,664.92,0.751]
[1737935242060,0.88510079,665.98,664.93,0.27604578]
[1737935242258,0.88510079,665.98,664.94,0.27604578]
[1737935242459,0.88510079,665.98,664.95,0.27604578]
[1737935242655,0.88510079,665.98,664.93,0.27604578]
[1737935242856,0.3003048,665.99,664.94,0.27604578]
[1737935243161,0.3003048,665.99,664.95,0.27604578]
[1737935243362,0.3003048,665.99,664.96,0.27604578]
[1737935243562,0.3003048,665.99,664.97,0.27604578]
[1737935243862,0.3003048,665.99,664.98,0.27604578]
[1737935244064,0.8867135,665.98,664.99,0.27604578]
[1737935244264,0.30031382,665.97,665.0,0.27604578]